bitfinex-derivatives/quotes_BTCF0:USTF0_20260113
["timestamp","ask_amount","ask_price","bid_price","bid_amount"]
[1768307848811,0.09331698,92146.0,92132.0,0.010865]
[1768307849606,0.15280391,92146.0,92132.0,0.010865]
[1768307849817,0.09331698,92145.0,92130.0,0.23948117]
[1768307850718,0.010864,92148.0,92133.0,0.010865]
[1768307850918,0.001,92147.0,92133.0,0.010865]
[1768307851214,0.001,92147.0,92134.0,0.010865]
[1768307851417,0.001,92147.0,92137.0,0.13085517]
[1768307852025,0.010864,92148.0,92137.0,0.13085517]
[1768307852918,0.010864,92148.0,92137.0,0.11685517]
[1768307853618,0.09331698,92149.0,92137.0,0.11685517]
[1768307853819,0.09331698,92149.0,92139.0,0.13085517]
[1768307854021,0.010864,92147.0,92139.0,0.13085517]
[1768307854318,0.010864,92147.0,92137.0,0.13085517]
[1768307855717,0.011864,92147.0,92135.0,0.010865]
[1768307859020,0.011864,92147.0,92131.0,0.010865]
[1768307859021,0.010864,92144.0,92131.0,0.010865]
[1768307859217,0.010864,92143.0,92131.0,0.010865]
[1768307860421,0.010864,92143.0,92130.0,0.22861517]
[1768307860724,0.010865,92137.0,92130.0,0.22861517]
[1768307860914,0.010865,92137.0,92130.0,0.09776]
[1768307861413,0.010865,92139.0,92130.0,0.09776]
[1768307861622,0.010865,92139.0,92130.0,0.07476]
[1768307862022,0.07111704,92144.0,92130.0,0.07476]
[1768307862817,0.08172183,92143.0,92130.0,0.07476]
[1768307863022,0.08172183,92143.0,92130.0,0.21648117]
[1768307863208,0.06025304,92144.0,92130.0,0.21648117]
[1768307863414,0.07111704,92144.0,92132.0,0.010865]
[1768307864023,0.07111704,92144.0,92130.0,0.21648117]
[1768307865424,0.010864,92143.0,92130.0,0.21648117]
[1768307867730,0.06025304,92144.0,92130.0,0.21648117]
[1768307867731,0.010864,92142.0,92130.0,0.21648117]
[1768307868328,0.14197487,92144.0,92133.0,0.010865]
[1768307868529,0.06025304,92144.0,92133.0,0.010865]
[1768307869230,0.07111704,92144.0,92130.0,0.19048017]
[1768307869428,0.07111704,92144.0,92133.0,0.010865]
[1768307869631,0.001,92142.0,92133.0,0.010865]
[1768307870134,0.001,92142.0,92130.0,0.19048017]
[1768307871532,0.010864,92142.0,92130.0,0.19048017]
[1768307872334,0.010864,92142.0,92130.0,0.20134617]
[1768307872735,0.010864,92142.0,92132.0,0.010865]
[1768307873124,0.010864,92148.0,92130.0,0.19048017]
[1768307873430,0.212577,92150.0,92130.0,0.19048017]
[1768307873622,0.010864,92147.0,92136.0,0.010865]
[1768307874933,0.06025304,92151.0,92132.0,0.08192009]
[1768307875138,0.17948183,92154.0,92140.0,0.13085517]
[1768307875833,0.09776,92154.0,92140.0,0.13085517]
[1768307876432,0.010863,92151.0,92140.0,0.13085517]
[1768307876632,0.010863,92153.0,92141.0,0.010864]
[1768307876928,0.010863,92153.0,92135.0,0.08192009]
[1768307877129,0.010863,92153.0,92140.0,0.13085517]
[1768307877329,0.010863,92152.0,92140.0,0.13085517]
[1768307878234,0.010863,92152.0,92141.0,0.010864]
[1768307878533,0.010863,92151.0,92140.0,0.13085517]
[1768307878933,0.09876,92154.0,92140.0,0.13085517]
[1768307878934,0.010863,92149.0,92140.0,0.13085517]
[1768307879336,0.010864,92148.0,92139.0,0.13085517]
[1768307879832,0.010863,92150.0,92139.0,0.13085517]
[1768307880033,0.010863,92150.0,92140.0,0.13085517]
[1768307880232,0.010863,92150.0,92140.0,0.13185517]
[1768307880837,0.010864,92149.0,92140.0,0.13185517]
[1768307881638,0.010864,92148.0,92140.0,0.13185517]
[1768307882335,0.010864,92148.0,92140.0,0.13085517]
[1768307883130,0.010864,92148.0,92140.0,0.13185517]
[1768307883537,0.010863,92150.0,92140.0,0.13185517]
[1768307883840,0.010864,92149.0,92140.0,0.13085517]
[1768307884045,0.010864,92149.0,92140.0,0.13185517]
[1768307884545,0.010864,92147.0,92140.0,0.13185517]
[1768307884741,0.010864,92147.0,92140.0,0.001]
[1768307885541,0.09776,92154.0,92137.0,0.13085517]
[1768307885542,0.010863,92153.0,92137.0,0.13085517]
[1768307885737,0.010863,92153.0,92140.0,0.13085517]
[1768307886144,0.010863,92153.0,92140.0,0.13185517]
[1768307886536,0.010864,92144.0,92140.0,0.13185517]
[1768307886736,0.010864,92144.0,92140.0,0.001]
[1768307886938,0.010864,92144.0,92135.0,0.14220038]
[1768307887129,0.010864,92142.0,92135.0,0.14220038]
[1768307887440,0.010865,92139.0,92135.0,0.14220038]
[1768307887830,0.010864,92147.0,92130.0,0.059625]
[1768307888030,0.15439433,92147.0,92130.0,0.19048017]
[1768307888229,0.010865,92140.0,92130.0,0.19048017]
[1768307888432,0.010865,92140.0,92130.0,0.27433309]
[1768307889043,0.010865,92140.0,92131.0,0.08385292]
[1768307890048,0.010865,92139.0,92130.0,0.19348017]
[1768307890246,0.010865,92137.0,92130.0,0.19348017]
[1768307890648,0.010865,92137.0,92130.0,0.062625]
[1768307890958,0.010865,92140.0,92130.0,0.062625]
[1768307891148,0.010865,92140.0,92130.0,0.059625]
[1768307891336,0.011865,92140.0,92131.0,0.004]
[1768307892038,0.011865,92140.0,92130.0,0.063625]
[1768307892437,0.011865,92140.0,92130.0,0.048625]
[1768307892735,0.010865,92140.0,92130.0,0.12847792]
[1768307892936,0.011865,92140.0,92131.0,0.004]
[1768307894547,0.010865,92140.0,92130.0,0.12847792]
[1768307894844,0.010864,92143.0,92130.0,0.14234392]
[1768307895045,0.010864,92141.0,92130.0,0.13147792]
[1768307895946,0.0595179,92148.0,92131.0,0.003]
[1768307895947,0.010865,92139.0,92131.0,0.003]
[1768307896848,0.010864,92141.0,92131.0,0.003]
[1768307897545,0.010864,92141.0,92130.0,0.13147792]
[1768307897947,0.010865,92139.0,92131.0,0.08346311]
[1768307898346,0.010865,92139.0,92131.0,0.08646311]
[1768307898548,0.010864,92141.0,92131.0,0.08646311]
[1768307899041,0.010864,92144.0,92131.0,0.08646311]
[1768307899435,0.010864,92143.0,92131.0,0.08646311]
[1768307899642,0.010864,92146.0,92131.0,0.08646311]
[1768307899847,0.08401243,92150.0,92131.0,0.08646311]
[1768307900050,0.010864,92146.0,92133.0,0.010865]
[1768307900251,0.010864,92146.0,92131.0,0.08646311]
[1768307900440,0.010864,92145.0,92133.0,0.010865]
[1768307902252,0.010864,92145.0,92133.0,0.012865]
[1768307902956,0.010864,92144.0,92133.0,0.002]
[1768307903554,0.010864,92144.0,92131.0,0.09432811]
[1768307904450,0.011864,92144.0,92133.0,0.010865]
[1768307904961,0.001,92144.0,92131.0,0.08346311]
[1768307905150,0.001,92144.0,92135.0,0.010865]
[1768307905350,0.001,92144.0,92133.0,0.08346311]
[1768307906156,0.001,92144.0,92136.0,0.010865]
[1768307906348,0.001,92144.0,92137.0,0.010865]
[1768307906550,0.010864,92148.0,92137.0,0.010865]
[1768307907454,0.010864,92148.0,92137.0,0.011865]
[1768307907757,0.108623,92150.0,92137.0,0.011865]
[1768307907954,0.108623,92150.0,92133.0,0.07732811]
[1768307908956,0.010864,92149.0,92136.0,0.010865]
[1768307909352,0.010864,92148.0,92136.0,0.010865]
[1768307909657,0.010864,92147.0,92133.0,0.08819311]
[1768307910556,0.010864,92147.0,92134.0,0.010865]
[1768307911153,0.010864,92145.0,92133.0,0.07732811]
[1768307911960,0.010864,92145.0,92133.0,0.08819311]
[1768307912160,0.001,92147.0,92135.0,0.010865]
[1768307913652,0.001,92145.0,92135.0,0.010865]
[1768307914368,0.010864,92148.0,92135.0,0.010865]
[1768307914560,0.001,92147.0,92135.0,0.010865]
[1768307915166,0.010864,92148.0,92135.0,0.010865]
[1768307915765,0.010864,92148.0,92132.0,0.06987722]
[1768307916468,0.010864,92148.0,92135.0,0.010865]
[1768307916660,0.001,92147.0,92135.0,0.010865]
[1768307917467,0.011864,92148.0,92135.0,0.010865]
[1768307918169,0.010864,92148.0,92135.0,0.010865]
[1768307918363,0.001,92147.0,92135.0,0.010865]
[1768307919669,0.010864,92148.0,92135.0,0.010865]
[1768307919863,0.011864,92148.0,92135.0,0.010865]
[1768307920468,0.010864,92148.0,92135.0,0.010865]
[1768307920768,0.001,92147.0,92133.0,0.09487722]
[1768307921268,0.010864,92148.0,92134.0,0.010865]
[1768307921465,0.011864,92148.0,92134.0,0.010865]
[1768307922868,0.001,92147.0,92134.0,0.010865]
[1768307923469,0.001,92147.0,92134.0,0.07087722]
[1768307923668,0.011864,92148.0,92135.0,0.010865]
[1768307924472,0.001,92147.0,92134.0,0.07087722]
[1768307925373,0.001,92147.0,92135.0,0.010865]
[1768307925674,0.001,92147.0,92136.0,0.010865]
[1768307925874,0.010863,92149.0,92136.0,0.010865]
[1768307926178,0.001,92148.0,92136.0,0.010865]
[1768307926674,0.010863,92149.0,92136.0,0.010865]
[1768307926976,0.010863,92149.0,92135.0,0.010865]
[1768307929075,0.011863,92149.0,92135.0,0.010865]
[1768307929277,0.010864,92148.0,92134.0,0.07087722]
[1768307929475,0.010864,92148.0,92134.0,0.08174222]
[1768307930176,0.001,92149.0,92137.0,0.010865]
[1768307931078,0.001,92149.0,92134.0,0.06874222]
[1768307931472,0.001,92149.0,92137.0,0.010865]
[1768307931870,0.108623,92150.0,92137.0,0.010865]
[1768307932175,0.001,92148.0,92135.0,0.010865]
[1768307932675,0.010864,92149.0,92135.0,0.010865]
[1768307932977,0.01,98400.0,92131.0,0.06877512]
[1768307932978,0.010862,92163.0,92131.0,0.06877512]
[1768307933277,0.010863,92155.0,92148.0,0.08401222]
[1768307933575,0.02818627,92154.0,92147.0,0.05737798]
[1768307933781,0.02818627,92153.0,92147.0,0.05737798]
[1768307933974,0.010863,92155.0,92145.0,0.08401222]
[1768307934175,0.02818615,92154.0,92145.0,0.08401222]
[1768307934375,0.010863,92155.0,92145.0,0.08401222]
[1768307934376,0.02818615,92153.0,92145.0,0.08401222]
[1768307934674,0.010863,92155.0,92145.0,0.08401222]
[1768307934870,0.02818599,92154.0,92145.0,0.08401222]
[1768307935070,0.02818599,92153.0,92145.0,0.08401222]
[1768307935280,0.010863,92155.0,92145.0,0.08401222]
[1768307935479,0.02818605,92154.0,92145.0,0.08401222]
[1768307935680,0.02818605,92153.0,92145.0,0.08401222]
[1768307935987,0.010863,92155.0,92145.0,0.08401222]
[1768307936178,0.02818511,92154.0,92145.0,0.08401222]
[1768307936384,0.010863,92155.0,92145.0,0.08401222]
[1768307936576,0.02818509,92154.0,92145.0,0.08501222]
[1768307936776,0.02818509,92153.0,92145.0,0.08501222]
[1768307936978,0.010863,92155.0,92145.0,0.08501222]
[1768307937173,0.02818507,92154.0,92145.0,0.08501222]
[1768307937483,0.010863,92155.0,92145.0,0.08401222]
[1768307937680,0.02818425,92154.0,92145.0,0.08401222]
[1768307937873,0.010863,92155.0,92145.0,0.08401222]
[1768307938068,0.02818423,92154.0,92145.0,0.08401222]
[1768307938272,0.010863,92155.0,92145.0,0.08401222]
[1768307938472,0.0281834,92154.0,92145.0,0.08401222]
[1768307938683,0.010863,92155.0,92145.0,0.08401222]
[1768307938871,0.03904638,92154.0,92145.0,0.07501222]
[1768307939075,0.010863,92154.0,92145.0,0.07501222]
[1768307940885,0.010863,92152.0,92145.0,0.07501222]
[1768307941186,0.09776,92162.0,92145.0,0.07501222]
[1768307941388,0.02797804,92161.0,92145.0,0.07501222]
[1768307941686,0.02797804,92160.0,92145.0,0.07501222]
[1768307941885,0.02797804,92159.0,92145.0,0.07501222]
[1768307942087,0.09776,92162.0,92141.0,0.05737798]
[1768307942088,0.02797804,92158.0,92141.0,0.05737798]
[1768307942385,0.17839316,92162.0,92141.0,0.05737798]
[1768307942386,0.010863,92152.0,92142.0,0.08401222]
[1768307942586,0.010863,92151.0,92142.0,0.08401222]
[1768307942787,0.010863,92152.0,92143.0,0.08401222]
[1768307943887,0.010863,92150.0,92143.0,0.08401222]
[1768307945185,0.010863,92150.0,92143.0,0.08501222]
[1768307945385,0.010861,92170.0,92149.0,0.14022532]
[1768307945686,0.12573427,92169.0,92153.0,3.2e-07]
[1768307945885,0.02797427,92168.0,92153.0,3.2e-07]
[1768307946086,0.02797427,92167.0,92143.0,0.002]
[1768307946287,0.02797427,92166.0,92143.0,0.002]
[1768307946487,0.010863,92155.0,92143.0,0.002]
[1768307946791,0.010863,92155.0,92140.0,0.010864]
[1768307947182,0.14520239,92168.0,92137.0,0.09776]
[1768307947389,0.010863,92149.0,92137.0,0.09776]
[1768307947582,0.010864,92147.0,92137.0,0.09776]
[1768307947784,0.010863,92150.0,92141.0,0.08633772]
[1768307948895,0.010863,92150.0,92141.0,0.08733772]
[1768307949097,0.010863,92152.0,92141.0,0.08733772]
[1768307950387,0.010863,92155.0,92142.0,0.0538876]
[1768307950586,0.010863,92155.0,92143.0,0.08633772]
[1768307951296,0.001,92152.0,92143.0,0.08633772]
[1768307951497,0.010863,92155.0,92143.0,0.07433772]
[1768307952099,0.011863,92155.0,92143.0,0.07933772]
[1768307952787,0.010862,92158.0,92144.0,0.0538876]
[1768307952986,0.001,92155.0,92144.0,0.0538876]
[1768307953291,0.001,92155.0,92145.0,0.13084357]
[1768307953494,0.001,92155.0,92146.0,0.08633772]
[1768307954310,0.010863,92156.0,92146.0,0.08633772]
[1768307955298,0.010863,92156.0,92146.0,0.08733772]
[1768307957100,0.010862,92157.0,92150.0,0.13084357]
[1768307957288,0.010862,92157.0,92148.0,0.09365291]
[1768307958402,0.012862,92157.0,92148.0,0.09365291]
[1768307958901,0.010862,92157.0,92148.0,0.09365291]
[1768307959195,0.012862,92157.0,92148.0,0.07965291]
[1768307960495,0.010862,92157.0,92148.0,0.07965291]
[1768307962001,0.010861,92167.0,92148.0,0.07965291]
[1768307962002,0.010863,92155.0,92148.0,0.07965291]
[1768307962203,0.010863,92154.0,92148.0,0.07965291]
[1768307963506,0.010863,92154.0,92148.0,0.08065291]
[1768307964001,0.010862,92164.0,92148.0,9.1e-07]
[1768307964203,0.010863,92151.0,92144.0,0.0538876]
[1768307964509,0.010863,92151.0,92140.0,0.18859388]
[1768307964802,0.010863,92151.0,92141.0,0.05775031]
[1768307966107,0.010863,92151.0,92142.0,0.03543848]
[1768307966307,0.010863,92151.0,92144.0,0.03543848]
[1768307966907,0.010863,92151.0,92144.0,0.02443848]
[1768307967206,0.010863,92153.0,92144.0,0.02443848]
[1768307973609,0.010863,92152.0,92144.0,0.02443848]
[1768307974107,0.010863,92151.0,92144.0,0.02443848]
[1768307974303,0.16259818,92164.0,92144.0,0.02443848]
[1768307974508,0.010863,92149.0,92144.0,0.02443848]
[1768307974710,0.010863,92149.0,92144.0,0.00854156]
[1768307975912,0.13084357,92160.0,92144.0,0.00854156]
[1768307976410,0.13084357,92160.0,92144.0,0.00954156]
[1768307977112,0.13084357,92160.0,92144.0,0.00854156]
[1768307977314,0.13284357,92160.0,92144.0,0.00854156]
[1768307977616,0.010863,92155.0,92144.0,0.00854156]
[1768307979917,0.13084357,92160.0,92144.0,0.00854156]
[1768307981611,0.010863,92154.0,92144.0,0.00854156]
[1768307982019,0.010863,92154.0,92143.0,0.05775031]
[1768307982915,0.010863,92154.0,92141.0,0.00771339]
[1768307983110,0.010863,92154.0,92140.0,0.14170757]
[1768307988124,0.010863,92154.0,92141.0,0.010864]
[1768307988921,0.13084357,92160.0,92140.0,0.010864]
[1768307989121,0.13084357,92160.0,92140.0,0.14170757]
[1768307989930,0.010863,92157.0,92142.0,0.010864]
[1768307990132,0.010863,92157.0,92147.0,0.13084357]
[1768307990722,0.010863,92157.0,92147.0,0.11184357]
[1768307992531,0.010862,92158.0,92149.0,0.06008789]
[1768307992735,0.002,92160.0,92151.0,0.00035957]
[1768307992924,0.02789655,92159.0,92149.0,0.05972832]
[1768307993231,0.002,92160.0,92149.0,0.05972832]
[1768307993438,0.010862,92158.0,92148.0,0.13084357]
[1768307995734,0.010863,92157.0,92148.0,0.13084357]
[1768307995936,0.010863,92157.0,92147.0,0.13120314]
[1768307996344,0.010863,92152.0,92142.0,0.09776]
[1768307997132,0.010863,92151.0,92142.0,0.09776]
[1768307998246,0.010863,92150.0,92142.0,0.09776]
[1768307998449,0.010863,92150.0,92142.0,0.08276]
[1768307999647,0.010863,92150.0,92142.0,0.08476]
[1768308000142,0.09613816,92156.0,92142.0,0.08476]
[1768308000345,0.010863,92154.0,92142.0,0.08476]
[1768308000539,0.15512169,92155.0,92142.0,0.08476]
[1768308000743,0.05898353,92155.0,92142.0,0.08476]
[1768308000942,0.010863,92151.0,92142.0,0.08476]
[1768308001139,0.09613816,92155.0,92142.0,0.001]
[1768308001343,0.010864,92145.0,92140.0,0.09776]
[1768308001849,0.010864,92144.0,92140.0,0.09776]
[1768308002238,0.09613816,92144.0,92130.0,0.09776]
[1768308002549,0.09613816,92144.0,92130.0,0.22860357]
[1768308002846,0.05898353,92145.0,92130.0,0.22860357]
[1768308003432,0.010865,92138.0,92130.0,0.22860357]
[1768308003638,0.010865,92138.0,92130.0,0.09776]
[1768308004046,0.010864,92140.0,92130.0,0.09776]
[1768308005041,0.001,92138.0,92130.0,0.09776]
[1768308005843,0.09613816,92147.0,92130.0,0.09776]
[1768308006049,0.001,92140.0,92130.0,0.22860357]
[1768308006248,0.001,92140.0,92130.0,0.20260357]
[1768308007040,0.001,92140.0,92131.0,0.01096774]
[1768308007949,0.010864,92144.0,92131.0,0.01096774]
[1768308008144,0.001,92138.0,92131.0,0.01096774]
[1768308008752,0.010864,92144.0,92131.0,0.01096774]
[1768308008948,0.27958213,92150.0,92131.0,0.01096774]
[1768308008949,0.001,92140.0,92134.0,0.010865]
[1768308009348,0.001,92140.0,92131.0,0.01096774]
[1768308009549,0.010864,92144.0,92131.0,0.01096774]
[1768308009750,0.001,92138.0,92131.0,0.01096774]
[1768308010150,0.001,92138.0,92131.0,0.00010174]
[1768308011155,0.010864,92146.0,92131.0,0.01096674]
[1768308011954,0.010864,92146.0,92131.0,0.01196674]
[1768308012554,0.010864,92146.0,92131.0,0.01096674]
[1768308012757,0.012864,92146.0,92131.0,0.01096674]
[1768308013959,0.012864,92146.0,92130.0,0.19357031]
[1768308014560,0.012864,92146.0,92131.0,0.010865]
[1768308015059,0.010864,92144.0,92130.0,0.20443631]
[1768308015362,0.012864,92146.0,92131.0,0.010865]
[1768308015659,0.010864,92146.0,92132.0,0.010865]
[1768308015860,0.012864,92146.0,92132.0,0.010865]
[1768308016757,0.010864,92144.0,92130.0,0.06272674]
[1768308016961,0.002,92146.0,92130.0,0.06272674]
[1768308016962,0.010864,92142.0,92130.0,0.06272674]
[1768308017161,0.010864,92142.0,92130.0,0.06368189]
[1768308018363,0.011864,92142.0,92130.0,0.06368189]
[1768308018666,0.010865,92140.0,92130.0,0.06368189]
[1768308019861,0.010865,92139.0,92130.0,0.06368189]
[1768308021668,0.010865,92139.0,92130.0,0.04268189]
[1768308021970,0.010865,92138.0,92130.0,0.04268189]
[1768308024071,0.010865,92138.0,92130.0,0.04368189]
[1768308024471,0.0970115,92148.0,92130.0,0.04368189]
[1768308024669,0.010865,92135.0,92130.0,0.04272674]
[1768308025271,0.010865,92137.0,92130.0,0.04272674]
[1768308026073,0.15602374,92147.0,92130.0,0.04272674]
[1768308026272,0.010865,92139.0,92130.0,0.04172674]
[1768308028971,0.010864,92144.0,92130.0,0.04172674]
[1768308029169,0.16688774,92147.0,92131.0,0.010866]
[1768308029384,0.05901224,92147.0,92130.0,0.04329276]
[1768308030067,0.05901224,92147.0,92135.0,0.010865]
[1768308030068,0.001,92144.0,92135.0,0.010865]
[1768308030871,0.002,92147.0,92135.0,0.010865]
[1768308031579,0.001,92144.0,92135.0,0.010865]
[1768308033072,0.012864,92147.0,92135.0,0.010865]
[1768308033979,0.001,92144.0,92135.0,0.010865]
[1768308034575,0.010864,92147.0,92135.0,0.010865]
[1768308034776,0.012864,92147.0,92135.0,0.010865]
[1768308036083,0.001,92144.0,92135.0,0.010865]
[1768308036774,0.010864,92147.0,92132.0,0.010865]
[1768308036983,0.012864,92147.0,92130.0,0.02815776]
[1768308037282,0.002,92147.0,92130.0,0.02815776]
[1768308037582,0.1078745,92151.0,92130.0,0.02815776]
[1768308037771,0.001,92144.0,92130.0,0.02815776]
[1768308037970,0.001,92144.0,92131.0,0.00380299]
[1768308038879,0.001,92144.0,92134.0,0.010865]
[1768308039183,0.002,92147.0,92134.0,0.010865]
[1768308039575,0.002,92147.0,92131.0,0.00380299]
[1768308039781,0.002,92147.0,92137.0,0.010865]
[1768308040079,0.010862,92158.0,92148.0,0.00336729]
[1768308040272,0.09776,92164.0,92149.0,0.00336729]
[1768308040578,0.02798587,92163.0,92149.0,0.00336729]
[1768308040782,0.02798587,92162.0,92149.0,0.00336729]
[1768308040980,0.02798587,92161.0,92147.0,0.010864]
[1768308041182,0.09776,92164.0,92147.0,0.010864]
[1768308041381,0.13453799,92163.0,92145.0,0.00252187]
[1768308041582,0.02778846,92162.0,92144.0,0.010864]
[1768308041777,0.02778846,92161.0,92144.0,0.010864]
[1768308041979,0.02778846,92161.0,92142.0,0.05344362]
[1768308041980,0.16042602,92163.0,92146.0,0.010864]
[1768308042176,0.02778842,92162.0,92142.0,0.05596549]
[1768308042376,0.02778842,92161.0,92143.0,0.00266995]
[1768308042580,0.16042602,92163.0,92143.0,0.00266995]
[1768308042884,0.0277821,92162.0,92143.0,0.00266995]
[1768308043183,0.002,92161.0,92143.0,0.00266995]
[1768308043384,0.002,92161.0,92147.0,0.010864]
[1768308043583,0.002,92161.0,92143.0,0.00266995]
[1768308043882,0.15256402,92163.0,92148.0,0.010863]
[1768308044085,0.02777699,92162.0,92148.0,0.010863]
[1768308044390,0.15256402,92163.0,92143.0,0.00266995]
[1768308044686,0.02777312,92162.0,92143.0,0.00266995]
[1768308044881,0.16342602,92163.0,92145.0,0.010864]
[1768308045087,0.02777301,92162.0,92145.0,0.010864]
[1768308045276,0.012862,92161.0,92145.0,0.010864]
[1768308046189,0.010862,92161.0,92145.0,0.010864]
[1768308046789,0.012862,92161.0,92145.0,0.010864]
[1768308046992,0.010862,92159.0,92145.0,0.010864]
[1768308049683,0.010862,92159.0,92145.0,0.001]
[1768308050083,0.010862,92157.0,92145.0,0.001]
[1768308051798,0.010862,92157.0,92144.0,0.010864]
[1768308053101,0.010862,92157.0,92145.0,0.001]
[1768308053697,0.14956402,92163.0,92145.0,0.001]
[1768308053899,0.09588753,92162.0,92145.0,0.001]
[1768308054598,0.09588753,92162.0,92144.0,0.010864]
[1768308054786,0.09588753,92162.0,92144.0,0.011864]
[1768308055392,0.010862,92160.0,92144.0,0.010864]
[1768308055598,0.010862,92159.0,92144.0,0.010864]
[1768308055794,0.010862,92159.0,92145.0,0.010864]
[1768308057400,0.10774953,92162.0,92147.0,0.010864]
[1768308057590,0.09688753,92162.0,92149.0,0.010863]
[1768308057790,0.001,92162.0,92154.0,0.010863]
[1768308057990,0.09776,92167.0,92153.0,0.00414376]
[1768308057991,0.108621,92167.0,92153.0,0.00414376]
[1768308058293,0.108621,92167.0,92152.0,0.010863]
[1768308058690,0.010862,92165.0,92150.0,0.18847742]
[1768308058997,0.010862,92165.0,92149.0,0.010863]
[1768308059298,0.010862,92165.0,92149.0,0.011863]
[1768308059690,0.19364753,92167.0,92149.0,0.001]
[1768308060995,0.19364753,92167.0,92147.0,0.00620142]
[1768308061196,0.19364753,92167.0,92149.0,0.001]
[1768308061398,0.19364753,92167.0,92152.0,0.010863]
[1768308062000,0.010859,92184.0,92140.0,0.22865004]
[1768308062001,0.15143649,92175.0,92157.0,0.00620142]
[1768308062401,0.24732402,92175.0,92153.0,0.04264504]
[1768308062893,0.14956402,92174.0,92153.0,0.04264504]
[1768308063599,0.010861,92172.0,92157.0,0.010862]
[1768308065702,0.010861,92172.0,92157.0,0.011862]
[1768308066103,0.010861,92170.0,92157.0,0.001]
[1768308067601,0.010861,92168.0,92154.0,0.010863]
[1768308068299,0.010861,92170.0,92154.0,0.010863]
[1768308068601,0.010861,92170.0,92157.0,0.001]
[1768308069106,0.010861,92170.0,92154.0,0.010863]
[1768308069405,0.010861,92170.0,92154.0,0.011863]
[1768308069703,0.010861,92170.0,92155.0,0.010863]
[1768308070807,0.010861,92170.0,92157.0,0.001]
[1768308071397,0.010861,92170.0,92156.0,0.010863]
[1768308072401,0.010861,92170.0,92157.0,0.001]
[1768308073107,0.010861,92172.0,92157.0,0.011862]
[1768308074410,0.010861,92172.0,92157.0,0.010862]
[1768308075412,0.010861,92172.0,92153.0,0.04050704]
[1768308076009,0.09695234,92172.0,92153.0,0.04050704]
[1768308076212,0.09776,92175.0,92151.0,0.108623]
[1768308076213,0.010862,92165.0,92151.0,0.108623]
[1768308076411,0.15074788,92162.0,92151.0,0.09776]
[1768308076616,0.10781434,92165.0,92151.0,0.09776]
[1768308077114,0.010862,92163.0,92151.0,0.09776]
[1768308077410,0.010861,92172.0,92140.0,0.09776]
[1768308077411,0.15074788,92154.0,92140.0,0.09776]
[1768308077602,0.010864,92144.0,92131.0,0.05282491]
[1768308077802,0.010864,92141.0,92132.0,0.09776]
[1768308078210,0.09695234,92143.0,92131.0,0.09776]
[1768308078911,0.05379554,92144.0,92132.0,0.010865]
[1768308079111,0.15074788,92150.0,92136.0,0.010865]
[1768308079307,0.15074788,92150.0,92140.0,0.13082655]
[1768308081915,0.15074788,92150.0,92140.0,0.13182655]
[1768308082503,0.05379554,92150.0,92140.0,0.13182655]
[1768308082815,0.05379554,92150.0,92140.0,0.11482655]
[1768308084619,0.10781434,92160.0,92140.0,0.2446531]
[1768308084804,0.09695234,92160.0,92150.0,0.13082655]
[1768308087220,0.09895234,92160.0,92147.0,0.010864]
[1768308088321,0.09695234,92160.0,92147.0,0.010864]
[1768308088516,0.09795234,92160.0,92147.0,0.010864]
[1768308088718,0.22877889,92160.0,92147.0,0.010864]
[1768308089416,0.22877889,92160.0,92141.0,0.09776]
[1768308089723,0.09795234,92160.0,92146.0,0.010864]
[1768308090015,0.15155554,92162.0,92148.0,0.010864]
[1768308090220,0.001,92160.0,92150.0,0.13082655]
[1768308090710,0.15155554,92162.0,92148.0,0.010864]
[1768308091020,0.001,92160.0,92149.0,0.010863]
[1768308091509,0.15155554,92162.0,92149.0,0.010863]
[1768308092523,0.010862,92166.0,92150.0,0.14168955]
[1768308093020,0.010862,92166.0,92142.0,0.05282491]
[1768308093021,0.010862,92166.0,92151.0,0.010863]
[1768308094019,0.011862,92166.0,92151.0,0.010863]
[1768308094220,0.001,92166.0,92153.0,0.010863]
[1768308094423,0.001,92166.0,92150.0,0.14168955]
[1768308094622,0.16160888,92167.0,92152.0,0.010863]
[1768308094823,0.001,92166.0,92152.0,0.010863]
[1768308096726,0.16160888,92167.0,92152.0,0.010863]
[1768308097024,0.001,92166.0,92152.0,0.010863]
[1768308097527,0.16160888,92167.0,92152.0,0.010863]
[1768308097720,0.001,92166.0,92152.0,0.010863]
[1768308098026,0.010862,92165.0,92150.0,0.13082655]
[1768308100727,0.011862,92165.0,92150.0,0.13082655]
[1768308100924,0.011862,92165.0,92150.0,0.14168955]
[1768308101325,0.011862,92165.0,92151.0,0.010863]
[1768308101528,0.001,92165.0,92151.0,0.010863]
[1768308101730,0.001,92165.0,92153.0,0.010863]
[1768308101932,0.001,92165.0,92153.0,0.06477603]
[1768308102927,0.010861,92169.0,92153.0,0.06477603]
[1768308103225,0.010861,92169.0,92153.0,0.05177603]
[1768308103431,0.010861,92169.0,92153.0,0.06263903]
[1768308103832,0.010861,92169.0,92153.0,0.06363903]
[1768308104521,0.010861,92169.0,92153.0,0.06263903]
[1768308106129,0.011861,92169.0,92153.0,0.06263903]
[1768308106533,0.010861,92167.0,92153.0,0.06263903]
[1768308107632,0.011861,92167.0,92153.0,0.06263903]
[1768308108436,0.001,92167.0,92154.0,0.010863]
[1768308109739,0.010861,92168.0,92154.0,0.010863]
[1768308110641,0.13082655,92170.0,92154.0,0.010863]
[1768308110842,0.010861,92170.0,92155.0,0.010863]
[1768308111140,0.14168755,92170.0,92153.0,0.04363903]
[1768308111341,0.001,92168.0,92153.0,0.04363903]
[1768308112450,0.001,92168.0,92155.0,0.010863]
[1768308112852,0.14168755,92170.0,92155.0,0.010863]
[1768308113046,0.010861,92169.0,92155.0,0.010863]
[1768308113250,0.13182655,92170.0,92153.0,0.05450203]
[1768308113953,0.001,92168.0,92153.0,0.05450203]
[1768308114450,0.011861,92168.0,92153.0,0.05450203]
[1768308115542,0.011861,92168.0,92154.0,0.010863]
[1768308115744,0.010861,92168.0,92154.0,0.010863]